fUSD/lending_fUSD_20240813
["ID","MTS","AMOUNT","RATE_DAILY","PERIOD"]
[334760667,1723536651288,-1400.0,0.00022865,2]
[334760668,1723536651298,-700.0,0.00022871,2]
[334760669,1723536651310,-600.0,0.00022873,2]
[334760670,1723536651319,-363.81912547,0.00022874,2]
[334760671,1723536651329,-500.0,0.00022898,2]
[334760672,1723536651339,-500.0,0.00022908,2]
[334760673,1723536651349,-600.0,0.00022987,2]
[334760674,1723536651358,-1400.0,0.00022998,2]
[334760675,1723536651367,-38500.1169635,0.00023,7]
[334760676,1723536651376,-463.44646322,0.00023002,4]
[334760677,1723536651386,-394.05542998,0.0002301,2]
[334760678,1723536651396,-500.0,0.00023031,2]
[334760679,1723536651405,-500.0,0.00023036,2]
[334760680,1723536651415,-394.05542998,0.0002306,2]
[334760681,1723536651425,-150.0,0.00023071,2]
[334760682,1723536651435,-500.0,0.00023131,2]
[334760683,1723536651445,-500.0,0.0002315,2]
[334760684,1723536651454,-180.0,0.00023205,2]
[334760685,1723536651465,-1400.0,0.00023212,2]
[334760686,1723536651475,-2258.0,0.00023217,2]
[334760687,1723536651484,-500.0,0.00023241,2]
[334760688,1723536651494,-1400.0,0.00023254,2]
[334760689,1723536651503,-363.81912547,0.00023264,2]
[334760690,1723536651513,-1400.0,0.00023267,2]
[334760691,1723536651523,-4815.4611884,0.00023295,30]
[334760692,1723536651532,-500.0,0.0002332,2]
[334760693,1723536651542,-500.0,0.00023334,2]
[334760694,1723536651551,-500.0,0.00023338,2]
[334760695,1723536651560,-600.0,0.00023349,2]
[334760696,1723536651570,-500.0,0.00023415,2]
[334760697,1723536651579,-998.86,0.00023435,2]
[334760698,1723536651599,-155.0,0.00023451,2]
[334760699,1723536651608,-600.0,0.00023473,2]
[334760700,1723536651617,-1400.0,0.00023511,2]
[334760701,1723536651626,-199.59331861,0.00023526,2]
[334760702,1723536651636,-500.0,0.0002353,2]
[334760703,1723536651646,-600.0,0.00023535,2]
[334760704,1723536651655,-363.81912547,0.00023539,2]
[334760705,1723536651665,-1400.0,0.00023542,2]
[334760706,1723536651674,-394.05542998,0.00023544,2]
[334760707,1723536651684,-3709.18468314,0.00023555,2]
[334760708,1723536651693,-394.05542998,0.00023614,2]
[334760709,1723536651702,-500.0,0.0002364,2]
[334760710,1723536651711,-48428.56175972,0.00023648,2]
[334760711,1723536651721,-150.0,0.00023648,2]
[334760712,1723536651730,-600.0,0.0002365,2]
[334760713,1723536651739,-3163.94,0.000237,7]
[334760714,1723536651748,-500.0,0.00023725,2]
[334760715,1723536651758,-363.81912547,0.00023764,2]
[334760716,1723536651767,-500.0,0.00023808,2]
[334760717,1723536651776,-500.0,0.00023834,2]
[334760718,1723536651785,-500.0,0.00023872,2]
[334760719,1723536651794,-1400.0,0.00023876,2]
[334760720,1723536651804,-363.81912547,0.00023904,2]
[334760721,1723536651813,-500.0,0.00023919,2]
[334760722,1723536651822,-394.05542998,0.00023942,2]
[334760723,1723536651831,-700.0,0.00023948,2]
[334760724,1723536651841,-500.0,0.00023954,2]
[334760725,1723536651851,-500.0,0.00023969,2]
[334760726,1723536651860,-900.0,0.00024,2]
[334760727,1723536651869,-329.64611789,0.00024,2]
[334760728,1723536651878,-297.35103314,0.00024,2]
[334760729,1723536651887,-2947.05743262,0.00024022,2]
[334760730,1723536651896,-340131.69391182,0.00024024,9]
[334760731,1723536651906,-328026.60936649,0.00024025,2]
[334760732,1723536651918,-556.71445253,0.00024031,2]
[334760733,1723536651927,-500.0,0.00024108,2]
[334760734,1723536651936,-500.0,0.00024116,2]
[334760735,1723536651945,-500.0,0.00024173,2]
[334760736,1723536651954,-500.0,0.00024189,2]
[334760737,1723536651964,-500.0,0.00024189,2]
[334760738,1723536651973,-435.04,0.00024192,2]
[334760739,1723536651982,-3887.25331391,0.000242,2]
[334760740,1723536651993,-150.0,0.00024201,2]
[334760741,1723536652003,-199.59331861,0.00024213,2]
[334760742,1723536652012,-150.0,0.00024225,2]
[334760743,1723536652021,-1090.0,0.0002425,2]
[334760744,1723536652030,-394.05542998,0.00024254,2]
[334760745,1723536652039,-363.81912547,0.00024278,2]
[334760746,1723536652048,-150.0,0.00024284,2]
[334760747,1723536652057,-1400.0,0.00024288,2]
[334760748,1723536652067,-500.0,0.00024308,2]
[334760749,1723536652076,-150.0,0.00024311,2]
[334760750,1723536652085,-150.0,0.00024312,2]
[334760751,1723536652096,-150.0,0.00024317,2]
[334760752,1723536652105,-150.0,0.00024343,2]
[334760753,1723536652115,-500.0,0.00024358,2]
[334760754,1723536652124,-500.0,0.00024365,2]
[334760755,1723536652134,-150.0,0.00024371,2]
[334760756,1723536652143,-150.0,0.00024383,2]
[334760757,1723536652153,-186.75230875,0.00024385,2]
[334760758,1723536652163,-150.0,0.00024389,2]
[334760759,1723536652172,-655.77,0.000244,14]
[334760760,1723536652182,-1400.0,0.00024408,2]
[334760761,1723536652193,-1500.0,0.00024418,2]
[334760762,1723536652203,-150.0,0.00024448,2]
[334760763,1723536652212,-150.0,0.0002445,2]
[334760764,1723536652222,-700.0,0.00024457,2]
[334760765,1723536652231,-500.0,0.0002446,2]
[334760766,1723536652241,-150.0,0.00024495,2]
[334760767,1723536652252,-500.0,0.00024497,2]
[334760768,1723536652261,-150.0,0.00024498,2]
[334760769,1723536652271,-1790.45237902,0.000245,2]
[334760770,1723536652280,-1090.0,0.000245,2]
[334760771,1723536652289,-150.0,0.00024531,2]
[334760772,1723536652298,-394.05542998,0.00024532,2]
[334760773,1723536652307,-150.0,0.00024536,2]
[334760774,1723536652316,-150.0,0.00024538,2]
[334760775,1723536652326,-150.0,0.00024552,2]
[334760776,1723536652337,-363.81912547,0.00024556,2]
[334760777,1723536652346,-700.0,0.00024563,2]
[334760778,1723536652355,-150.0,0.00024586,2]
[334760779,1723536652365,-276.96,0.00024599,2]
[334760780,1723536652374,-3163.94,0.000246,7]
[334760781,1723536652383,-500.0,0.00024601,2]
[334760782,1723536652393,-150.0,0.00024615,2]
[334760783,1723536652402,-137410.89569367,0.00024625,2]
[334760784,1723536652412,-1400.0,0.00024633,2]
[334760785,1723536652421,-150.0,0.00024636,2]
[334760786,1723536652430,-998.86,0.0002464,2]
[334760787,1723536652440,-2000.0,0.00024657,2]
[334760788,1723536652449,-2000.0,0.00024657,2]
[334760789,1723536652458,-2000.0,0.00024657,2]
[334760790,1723536652468,-1319.56348067,0.00024657,2]
[334760791,1723536652477,-150.0,0.00024657,4]
[334760792,1723536652486,-150.0,0.00024657,4]
[334760793,1723536652496,-150.20473254,0.00024657,4]
[334760794,1723536652506,-150.0,0.00024657,4]
[334760795,1723536652515,-150.12977939,0.00024657,4]
[334760796,1723536652524,-150.0,0.00024657,4]
[334760797,1723536652535,-150.0,0.00024657,4]
[334760798,1723536652544,-157.68839632,0.00024657,4]
[334760799,1723536652554,-220.49044651,0.00024657,4]
[334760800,1723536652563,-150.18099796,0.00024657,4]
[334760801,1723536652573,-150.0,0.00024673,2]
[334760802,1723536652583,-150.0,0.00024674,2]
[334760803,1723536652595,-394.05543007,0.0002468,2]
[334760804,1723536652604,-150.0,0.00024681,2]
[334760805,1723536652613,-150.0,0.00024686,2]
[334760806,1723536652622,-150.0,0.00024689,2]
[334760807,1723536652632,-50774.4978,0.000247,2]
[334760808,1723536652641,-700.0,0.00024722,2]
[334760809,1723536652650,-500.0,0.00024729,2]
[334760810,1723536652660,-150.0,0.00024731,2]
[334760811,1723536652671,-1400.0,0.00024736,2]
[334760812,1723536652679,-150.0,0.00024738,2]
[334760813,1723536652689,-150.0,0.00024742,2]
[334760814,1723536652699,-700.0,0.00024749,2]
[334760815,1723536652709,-1090.0,0.0002475,2]
[334760816,1723536652720,-2219.48682,0.0002475,2]
[334760817,1723536652732,-150.0,0.00024759,4]
[334760818,1723536652741,-150.0,0.00024769,2]
[334760819,1723536652752,-150.0,0.00024769,2]
[334760820,1723536652761,-150.0,0.00024777,2]
[334760821,1723536652771,-500.0,0.00024784,2]
[334760822,1723536652780,-1000.0,0.000248,2]
[334760823,1723536652790,-1000.0,0.000248,2]
[334760824,1723536652801,-1000.0,0.000248,2]
[334760825,1723536652811,-1000.0,0.000248,2]
[334760826,1723536652821,-1000.0,0.000248,2]
[334760827,1723536652830,-1000.0,0.000248,2]
[334760828,1723536652841,-1000.0,0.000248,2]
[334760829,1723536652850,-150.0,0.00024802,2]
[334760830,1723536652859,-500.0,0.00024811,2]
[334760831,1723536652869,-150.0,0.00024827,2]
[334760832,1723536652879,-363.81912554,0.00024827,2]
[334760833,1723536652888,-150.0,0.00024836,2]
[334760834,1723536652897,-150.0,0.00024845,2]
[334760835,1723536652908,-500.0,0.00024853,2]
[334760836,1723536652921,-150.0,0.0002486,4]
[334760837,1723536652930,-150.0,0.00024863,2]
[334760838,1723536652940,-159.23981896,0.00024873,2]
[334760839,1723536652951,-1000.0,0.00024875,2]
[334760840,1723536652960,-1000.0,0.00024875,2]
[334760841,1723536652970,-1000.0,0.00024875,2]
[334760842,1723536652979,-1000.0,0.00024875,2]
[334760843,1723536652990,-1000.0,0.00024875,2]
[334760844,1723536652999,-1000.0,0.00024875,2]
[334760845,1723536653008,-1000.0,0.00024875,2]
[334760846,1723536653018,-1000.0,0.00024875,2]
[334760847,1723536653027,-1000.0,0.00024875,2]
[334760848,1723536653036,-1000.0,0.00024875,2]
[334760849,1723536653046,-1000.0,0.00024875,2]
[334760850,1723536653055,-1000.0,0.00024875,2]
[334760851,1723536653064,-1000.0,0.00024875,2]
[334760852,1723536653073,-1000.0,0.00024875,2]
[334760853,1723536653083,-1000.0,0.00024875,2]
[334760854,1723536653341,-1000.0,0.00024875,2]
[334760855,1723536653358,-1000.0,0.00024875,2]
[334760856,1723536653368,-1000.0,0.00024875,2]
[334760857,1723536653377,-1000.0,0.00024875,2]
[334760858,1723536653387,-1000.0,0.00024875,2]
[334760859,1723536653397,-1000.0,0.00024875,2]
[334760860,1723536653406,-1000.0,0.00024875,2]
[334760861,1723536653415,-1000.0,0.00024875,2]
[334760862,1723536653425,-1000.0,0.00024875,2]
[334760863,1723536653435,-1000.0,0.00024875,2]
[334760864,1723536653445,-1000.0,0.00024875,2]
[334760865,1723536653455,-1000.0,0.00024875,2]
[334760866,1723536653465,-1000.0,0.00024875,2]
[334760867,1723536653474,-1000.0,0.00024875,2]
[334760868,1723536653484,-1000.0,0.00024875,2]
[334760869,1723536653494,-782.511,0.00024875,2]
[334760870,1723536653503,-500.0,0.00024877,2]
[334760871,1723536653513,-5000.0,0.0002488,32]
[334760872,1723536653523,-217.0,0.000249,2]
[334760873,1723536653533,-3000.0,0.000249,2]
[334760874,1723536653542,-5721.6096,0.000249,2]
[334760875,1723536653552,-3000.0,0.000249,2]
[334760876,1723536653562,-152.16,0.000249,31]
[334760877,1723536653571,-152.16,0.000249,31]
[334760878,1723536653581,-152.16,0.000249,31]
[334760879,1723536653592,-152.16,0.000249,31]
[334760880,1723536653602,-152.16,0.000249,31]
[334760881,1723536653611,-152.16,0.000249,31]
[334760882,1723536653621,-152.16,0.000249,31]
[334760883,1723536653630,-152.16,0.000249,31]
[334760884,1723536653640,-152.16,0.000249,31]
[334760885,1723536653650,-152.16,0.000249,31]
[334760886,1723536653659,-152.16,0.000249,31]
[334760887,1723536653670,-152.16,0.000249,31]
[334760888,1723536653679,-152.16,0.000249,31]
[334760889,1723536653690,-152.16,0.000249,31]
[334760890,1723536653700,-152.16,0.000249,31]
[334760891,1723536653710,-152.16,0.000249,31]
[334760892,1723536653719,-152.16,0.000249,31]
[334760893,1723536653729,-152.16,0.000249,31]
[334760894,1723536653739,-152.16,0.000249,31]
[334760895,1723536653748,-152.16,0.000249,31]
[334760896,1723536653758,-150.0,0.000249,2]
[334760897,1723536653767,-199.59331861,0.000249,2]
[334760898,1723536653776,-48428.56175972,0.000249,2]
[334760899,1723536653786,-500.0,0.000249,2]
[334760900,1723536653795,-463.44646322,0.000249,4]
[334760901,1723536653805,-309.47314323,0.000249,2]
[334760902,1723536653815,-164.14081487,0.000249,2]
[334760903,1723536653824,-150.0,0.00024909,2]
[334760904,1723536653833,-150.0,0.00024928,2]
[334760905,1723536653844,-10000.0,0.0002493,2]
[334760906,1723536653853,-150.0,0.00024931,4]
[334760907,1723536653863,-300.0,0.00024938,2]
[334760908,1723536653872,-150.0,0.00024938,2]
[334760909,1723536653881,-150.0,0.00024938,2]
[334760910,1723536653891,-300.0,0.00024938,2]
[334760911,1723536653900,-150.0,0.0002495,2]
[334760912,1723536653912,-500.0,0.00024952,2]
[334760913,1723536653924,-150.0,0.0002496,2]
[334760914,1723536653933,-150.0,0.00024962,4]
[334760915,1723536653943,-150.0,0.00024962,4]
[334760916,1723536653954,-150.0,0.00024965,2]
[334760917,1723536653964,-150.0,0.00024969,2]
[334760918,1723536653973,-150.0,0.00024982,2]
[334760919,1723536653982,-150.0,0.00024986,2]
[334760920,1723536653994,-150.0,0.0002499,2]
[334760921,1723536654005,-2947.05743262,0.00024994,2]
[334760922,1723536654014,-3620.5354979,0.00024997,2]
[334760923,1723536654024,-3042.1196166,0.00024997,2]
[334760924,1723536654033,-2463.7037352,0.00024997,2]
[334760925,1723536654043,-1885.2878539,0.00024997,2]
[334760926,1723536654052,-1306.8719725,0.00024997,2]
[334760927,1723536654062,-728.4560911,0.00024997,2]
[334760928,1723536654072,-10633.6404959,0.00024997,2]
[334760929,1723536654082,-8934.8126449,0.00024997,2]
[334760930,1723536654093,-7235.9847939,0.00024997,2]
[334760931,1723536654103,-5537.1569429,0.00024997,2]
[334760932,1723536654112,-3838.3290919,0.00024997,2]
[334760933,1723536654122,-2139.5012409,0.00024997,2]
[334760934,1723536654131,-25914.0386156,0.00024997,2]
[334760935,1723536654142,-21800.3022081,0.00024997,2]
[334760936,1723536654152,-17686.5658006,0.00024997,2]
[334760937,1723536654161,-13572.8293931,0.00024997,2]
[334760938,1723536654170,-9459.0929856,0.00024997,2]
[334760939,1723536654179,-5345.3565781,0.00024997,2]
[334760940,1723536654189,-21420.801575,0.00024997,2]
[334760941,1723536654198,-18020.3462225,0.00024997,2]
[334760942,1723536654208,-14619.8908699,0.00024997,2]
[334760943,1723536654217,-11219.4355173,0.00024997,2]
[334760944,1723536654227,-7818.9801648,0.00024997,2]
[334760945,1723536654236,-4418.5248122,0.00024997,2]
[334760946,1723536654245,-26653.9283478,0.00024997,2]
[334760947,1723536654254,-29151.5415794,0.00024997,2]
[334760948,1723536654263,-31649.1548109,0.00024997,2]
[334760949,1723536654273,-34146.7680424,0.00024997,2]
[334760950,1723536654282,-36644.3812739,0.00024997,2]
[334760951,1723536654291,-39141.9945054,0.00024997,2]
[334760952,1723536654301,-3355.7183532,0.00024997,2]
[334760953,1723536654310,-2826.3472797,0.00024997,2]
[334760954,1723536654320,-2296.9762061,0.00024997,2]
[334760955,1723536654330,-1767.6051325,0.00024997,2]
[334760956,1723536654342,-1238.234059,0.00024997,2]
[334760957,1723536654352,-708.8629854,0.00024997,2]
[334760958,1723536654361,-5272.752909,0.00024997,2]
[334760959,1723536654370,-4440.965919,0.00024997,2]
[334760960,1723536654379,-3609.1789291,0.00024997,2]
[334760961,1723536654388,-2777.3919392,0.00024997,2]
[334760962,1723536654398,-1945.6049493,0.00024997,2]
[334760963,1723536654407,-1113.8179594,0.00024997,2]
[334760964,1723536654416,-34791.615668,0.00024997,2]
[334760965,1723536654425,-29312.368617,0.00024997,2]
[334760966,1723536654435,-23833.121566,0.00024997,2]
[334760967,1723536654444,-18353.874515,0.00024997,2]
[334760968,1723536654454,-12874.627464,0.00024997,2]
[334760969,1723536654463,-7395.380413,0.00024997,2]
[334760970,1723536654473,-14735.2871631,0.00024997,2]
[334760971,1723536654482,-1000.0,0.00024999,2]
[334760972,1723536654491,-2955.06352617,0.00024999,2]
[334760973,1723536654501,-1000.0,0.00024999,2]
[334760974,1723536654510,-1000.0,0.00024999,2]
[334760975,1723536654520,-9013.66954534,0.00024999,2]
[334760976,1723536654530,-10088.9707295,0.00025,2]
[334760977,1723536654539,-2406934.63905119,0.00025,2]
[334760978,1723536654549,-3029911.74911288,0.00025,2]
[334760979,1723536654558,-150.0,0.00025,20]
[334760980,1723536654568,-13619300.41985976,0.00025,2]
[334760981,1723536654727,-17170.27870673,0.00025,2]
[334760982,1723536654739,-7480.8599,0.00025,2]
[334760983,1723536654749,-8194.3,0.00025,2]
[334760984,1723536654761,-22512.11144,0.00025,2]
[334760985,1723536654772,-7104.61058235,0.00025,2]
[334760986,1723536654782,-1038.51813156,0.00025,2]
[334760987,1723536654794,-13049.81749577,0.00025,2]
[334760988,1723536654951,-412.640001,0.00013859,2]
[334760989,1723536655398,-993.61774136,0.00013859,2]
[334760990,1723536655407,-993.14078294,0.00013989,2]
[334760991,1723536655417,-1634.56112514,0.00014261,2]
[334760992,1723536655426,-248.95855497,0.00014283,2]
[334760993,1723536655435,-531.16504504,0.00014896,2]
[334760994,1723536655444,-515.59657301,0.00015221,2]
[334760995,1723536655453,-500.0,0.00015918,2]
[334760996,1723536655463,-500.0,0.00016192,2]
[334760997,1723536655472,-500.0,0.00016466,2]
[334760998,1723536655481,-500.0,0.0001674,2]
[334760999,1723536655490,-500.0,0.00017014,2]
[334761000,1723536655499,-500.0,0.00017288,2]
[334761001,1723536655509,-500.0,0.00017562,2]
[334761002,1723536655518,-2203.12918829,0.00018898,2]
[334761003,1723536655566,1000.0,0.00012718,2]
[334761004,1723536655679,-686.31782314,0.00014146,2]
[334761005,1723536655689,-155.0,0.00014283,2]
[334761006,1723536655698,-297.3367735,0.00014308,2]
[334761007,1723536655710,-702.6632265,0.00014308,2]
[334761008,1723536655719,-547.4313577,0.00015898,2]
[334761009,1723536655731,-452.5686423,0.00015898,2]
[334761010,1723536655740,-1000.0,0.00017488,2]
[334761011,1723536655750,-500.0,0.00017836,2]
[334761012,1723536655759,-266.27193879,0.0001811,2]
[334761013,1723536655771,-233.72806121,0.0001811,2]
[334761014,1723536655780,-70.01193879,0.00018384,2]
[334761015,1723536670907,1547.5801789,0.00027,120]
[334761016,1723536671746,641.33,0.00012718,2]
[334761017,1723536740597,1500.0,0.00012718,5]
[334761018,1723536744323,150.0,0.00013,2]
[334761019,1723536869077,287.2,0.00013,2]
[334761020,1723536876381,550.0,0.0001,2]
[334761021,1723536877509,600.0,0.00012,2]
[334761022,1723537111413,800.0,0.00012718,2]
[334761023,1723537170747,150.0,0.00026865,120]
[334761024,1723537398914,216.05,0.00011686,2]
[334761098,1723537832134,-2785.986607,0.00013092,2]
[334761099,1723537832145,-360.0,0.00013158,2]
[334761100,1723537832155,-300.0,0.00013517,2]
[334761101,1723537832165,-300.0,0.00013517,2]
[334761102,1723537832178,-13037.39272313,0.00013518,2]
[334761103,1723537832188,-150.0,0.00013527,2]
[334761104,1723537832198,-35350.28120791,0.00013528,2]
[334761105,1723537832247,-2475.883476,0.00013528,2]
[334761106,1723537832310,-21626.77171609,0.00013528,2]
[334761107,1723537832322,-400.0,0.00013605,2]
[334761110,1723537832673,-155.0,0.00013648,2]
[334761111,1723537832683,-317.13942425,0.00013698,2]
[334761112,1723537832693,-200.0,0.00013699,2]
[334761113,1723537832703,-109.94294966,0.00013699,2]
[334761116,1723537838270,-2641.05705034,0.00013699,2]
[334761117,1723537838280,-3.0565496,0.0001372,2]
[334761118,1723537838330,-151.9434504,0.0001372,2]
[334761119,1723537838341,-166.39780491,0.0001372,2]
[334761120,1723537838350,-341.6587447,0.00013799,2]
[334761121,1723537838361,-97.45680533,0.00013799,2]
[334761122,1723537838373,-244.66931876,0.00013859,2]
[334761274,1723537840223,-17025.25710944,0.00013859,2]
[334761276,1723537840232,-608.0105077,0.00013889,2]
[334761278,1723537840242,-608.0105077,0.00013889,2]
[334761281,1723537840252,-260.25745338,0.00013899,2]
[334761283,1723537840261,-5653.41196675,0.000139,2]
[334761285,1723537840270,-1000.0,0.00013901,2]
[334761286,1723537840279,-216.05,0.0001395,2]
[334761288,1723537840289,-172.58,0.00013973,2]
[334761290,1723537840305,-221.73803944,0.00013986,2]
[334761292,1723537840314,-301.3119806,0.00013986,2]
[334761294,1723537840324,-531.16504504,0.00013986,2]
[334761296,1723537840333,-650.0,0.00014,2]
[334761298,1723537840343,-500.0,0.00014,2]
[334761300,1723537840352,-501.22788151,0.00014,2]
[334761302,1723537840361,-502.53671494,0.00014,2]
[334761304,1723537840373,-522.83554972,0.00014,2]
[334761306,1723537840383,-506.09939301,0.00014,2]
[334761308,1723537840393,-500.0,0.00014,2]
[334761310,1723537840402,-504.86114932,0.00014,2]
[334761312,1723537840412,-500.0,0.00014,2]
[334761314,1723537840421,-593.75499559,0.00014,2]
[334761316,1723537840431,-509.87997997,0.00014,2]
[334761318,1723537840441,-508.86619854,0.00014,2]
[334761320,1723537840450,-520.97174092,0.00014,2]
[334761322,1723537840460,-495.74505325,0.00014,2]
[334761324,1723537840470,-619.24,0.00014,2]
[334761326,1723537840480,-500.0,0.00014,2]
[334761328,1723537840490,-500.0,0.00014,2]
[334761330,1723537840499,-521.20129793,0.00014,2]
[334761333,1723537840509,-509.84727883,0.00014,2]
[334761335,1723537840518,-514.67645181,0.00014,2]
[334761336,1723537840527,-522.92162939,0.00014,2]
[334761338,1723537840537,-500.0,0.00014,2]
[334761340,1723537840547,-500.0,0.00014,2]
[334761342,1723537840559,-510.64354298,0.00014,2]
[334761344,1723537840568,-500.0,0.00014,2]
[334761346,1723537840578,-508.09342213,0.00014,2]
[334761348,1723537840587,-513.52681796,0.00014,2]
[334761350,1723537840596,-512.87122599,0.00014,2]
[334761352,1723537840605,-509.17261836,0.00014,2]
[334761354,1723537840615,-528.79951084,0.00014,2]
[334761356,1723537840624,-512.79817921,0.00014,2]
[334761358,1723537840634,-506.7724212,0.00014,2]
[334761360,1723537840643,-507.90335165,0.00014,2]
[334761362,1723537840652,-511.86048112,0.00014,2]
[334761364,1723537840662,-516.89644537,0.00014,2]
[334761366,1723537840671,-517.53297067,0.00014,2]
[334761368,1723537840680,-503.43959839,0.00014,2]
[334761370,1723537840690,-500.0,0.00014,2]
[334761372,1723537840699,-500.0,0.00014,2]
[334761374,1723537840708,-500.0,0.00014,2]
[334761376,1723537840717,-500.0,0.00014,2]
[334761378,1723537840727,-502.78623505,0.00014001,2]
[334761380,1723537840736,-508.3496087,0.00014001,2]
[334761382,1723537840745,-506.19276907,0.00014001,2]
[334761384,1723537840755,-503.11791006,0.00014001,2]
[334761386,1723537840764,-508.38148644,0.00014001,2]
[334761388,1723537840773,-502.26046188,0.00014001,2]
[334761390,1723537840783,-512.64418373,0.00014001,2]
[334761392,1723537840792,-504.13781547,0.00014001,2]
[334761394,1723537840802,-503.71765321,0.00014001,2]
[334761396,1723537840818,-512.91192188,0.00014001,2]
[334761398,1723537840827,-503.3908097,0.00014001,2]
[334761400,1723537840837,-507.2020808,0.00014001,2]
[334761402,1723537840846,-502.7973163,0.00014001,2]
[334761404,1723537840855,-506.81105238,0.00014001,2]
[334761406,1723537840864,-506.1847864,0.00014001,2]
[334761408,1723537840874,-502.1799472,0.00014001,2]
[334761409,1723537840883,-504.17443999,0.00014001,2]
[334761410,1723537840893,-506.7786781,0.00014001,2]
[334761411,1723537840902,-502.96646065,0.00014001,2]
[334761412,1723537840912,-475.27294043,0.00014001,2]
[334761413,1723537840921,-588.55213705,0.00014001,2]
[334761414,1723537840931,-506.59743772,0.00014001,2]
[334761415,1723537840940,-502.48876027,0.00014001,2]
[334761416,1723537840950,-506.93300756,0.00014001,2]
[334761417,1723537840960,-504.11002612,0.00014001,2]
[334761418,1723537840970,-504.9485476,0.00014001,2]
[334761419,1723537840979,-511.15557657,0.00014001,2]
[334761420,1723537840989,-510.22101844,0.00014001,2]
[334761421,1723537840998,-503.43817618,0.00014001,2]
[334761423,1723537841008,-506.2601883,0.00014001,2]
[334761424,1723537841016,-500.0,0.00014001,2]
[334761426,1723537841026,-503.45890376,0.00014001,2]
[334761428,1723537841035,-518.05778128,0.00014001,2]
[334761430,1723537841045,-502.48462406,0.00014001,2]
[334761432,1723537841056,-508.96695031,0.00014001,2]
[334761434,1723537841065,-506.06291024,0.00014001,2]
[334761436,1723537841075,-500.0,0.00014001,2]
[334761438,1723537841084,-500.0,0.00014001,2]
[334761440,1723537841094,-503.65696986,0.00014001,2]
[334761442,1723537841103,-500.0,0.00014001,2]
[334761444,1723537841113,-503.04842027,0.00014001,2]
[334761446,1723537841122,-513.39183613,0.00014001,2]
[334761448,1723537841132,-504.4404432,0.00014001,2]
[334761450,1723537841141,-504.3220658,0.00014001,2]
[334761452,1723537841150,-504.1486568,0.00014001,2]
[334761454,1723537841160,-508.081222,0.00014001,2]
[334761456,1723537841169,-504.77749774,0.00014001,2]
[334761458,1723537841178,-502.15277003,0.00014001,2]
[334761460,1723537841188,-507.48426674,0.00014001,2]
[334761462,1723537841197,-501.93589773,0.00014001,2]
[334761464,1723537841206,-504.81817297,0.00014001,2]
[334761466,1723537841216,-504.70649527,0.00014001,2]
[334761468,1723537841225,-502.52759269,0.00014001,2]
[334761470,1723537841235,-512.46016572,0.00014001,2]
[334761472,1723537841245,-520.89730317,0.00014001,2]
[334761473,1723537841254,-503.93053437,0.00014001,2]
[334761475,1723537841263,-503.89935019,0.00014001,2]
[334761477,1723537841274,-501.68357094,0.00014001,2]
[334761480,1723537841283,-503.55958238,0.00014001,2]
[334761482,1723537841295,-505.4243559,0.00014001,2]
[334761484,1723537841310,-500.41574891,0.00014001,2]
[334761485,1723537841319,-504.0265419,0.00014001,2]
[334761487,1723537841328,-503.92778478,0.00014001,2]
[334761489,1723537841339,-502.34789132,0.00014001,2]
[334761491,1723537841348,-503.54971558,0.00014001,2]
[334761493,1723537841358,-503.65338281,0.00014001,2]
[334761495,1723537841367,-504.64695327,0.00014001,2]
[334761497,1723537841379,-510.47525242,0.00014001,2]
[334761499,1723537841390,-502.34021129,0.00014001,2]